lending/lending_fUSD_20260104
["ID","MTS","AMOUNT","RATE_DAILY","PERIOD"]
[400435347,1767550328915,-300.0,0.00015219,2]
[400435348,1767550329440,-8485.6308223,0.0001522,2]
[400435349,1767550329461,-10000.01,0.0001522,2]
[400435384,1767550372791,6506.3503,0.0001512,2]
[400435476,1767550491513,2809.35212396,0.0001512,2]
[400435487,1767550581739,300.0,0.0001516,2]
[400435488,1767550581903,300.0,0.00015176,2]
[400435491,1767550606848,164.63556264,0.0001512,2]
[400435538,1767550694025,1205.47962855,0.0001512,2]
[400435544,1767550784784,150.0,0.00014635,2]
[400435558,1767550863307,164.63556262,0.0001514,2]
[400435560,1767550877638,2528.4169116,0.0001514,2]
[400435564,1767550893953,767.555,0.00014916,2]
[400435565,1767550895478,221.17,7.304e-05,2]
[400435566,1767550895687,221.17,7.689e-05,2]
[400435567,1767550895908,221.17,8.073e-05,2]
[400435568,1767550896115,221.17,8.458e-05,2]
[400435569,1767550896307,221.17,8.842e-05,2]
[400435570,1767550896499,221.17,9.227e-05,2]
[400435571,1767550896702,221.17,9.611e-05,2]
[400435572,1767550896914,221.17,9.995e-05,2]
[400435573,1767550897127,221.17,0.0001038,2]
[400435574,1767550897323,221.17,0.00010764,2]
[400435575,1767550897528,221.17,0.00011149,2]
[400435576,1767550897736,221.17,0.00011533,2]
[400435577,1767550897940,221.17,0.00011918,2]
[400435578,1767550898131,221.17,0.00012302,2]
[400435579,1767550898416,221.17,0.00012686,2]
[400435580,1767550898640,221.17,0.00013071,2]
[400435581,1767550898837,221.17,0.00013455,2]
[400435582,1767550899047,221.17,0.0001384,2]
[400435583,1767550899267,221.17,0.00014224,2]
[400435584,1767550899474,221.17,0.00014609,2]
[400435587,1767550952006,297.18,0.00015093,2]
[400435589,1767550978980,298.70733459,0.00014597,2]
[400435590,1767550979004,701.29266541,0.00014597,2]
[400435591,1767550995087,2080.8075,0.0001512,2]
[400435592,1767551006244,7217.90983459,0.00014604,2]
[400435593,1767551006266,10000.01,0.00014604,2]
[400435594,1767551006290,10000.01,0.00014604,2]
[400435595,1767551006312,10000.01,0.00014604,2]
[400435596,1767551006334,2122.55016541,0.00014604,2]
[400435597,1767551016420,3240.0,0.00014606,2]
[400435600,1767551078420,168.74662366,0.0001514,2]
[400435605,1767551123188,4468.71321093,0.0001512,2]
[400435606,1767551123220,10000.01,0.0001512,2]
[400435607,1767551123251,10000.01,0.0001512,2]
[400435608,1767551123282,10000.01,0.0001512,2]
[400435609,1767551123314,10000.01,0.0001512,2]
[400435610,1767551123346,10000.01,0.0001512,2]
[400435611,1767551123383,10000.01,0.0001512,2]
[400435612,1767551123415,10000.01,0.0001512,2]
[400435613,1767551123459,10000.01,0.0001512,2]
[400435614,1767551123493,10000.01,0.0001512,2]
[400435615,1767551125789,1026.06254062,0.000108,2]
[400435619,1767551157660,-84.30757604,0.0001512,2]
[400435620,1767551157765,-10000.01,0.0001512,2]
[400435621,1767551157906,-10000.01,0.0001512,2]
[400435622,1767551158100,-10000.01,0.0001512,2]
[400435623,1767551158348,-10000.01,0.0001512,2]
[400435624,1767551160264,23538.61625108,8e-05,2]
[400435625,1767551164105,634.24593411,0.00011,2]
[400435626,1767551165188,-10000.01,0.0001512,2]
[400435627,1767551165383,-10000.01,0.0001512,2]
[400435628,1767551165566,-10000.01,0.0001512,2]
[400435629,1767551165940,-10000.01,0.0001512,2]
[400435630,1767551165986,-10000.01,0.0001512,2]
[400435631,1767551166189,-10000.01,0.0001512,2]
[400435636,1767551183000,-10000.01,0.0001512,2]
[400435637,1767551183240,-10000.01,0.0001512,2]
[400435638,1767551183505,-10000.01,0.0001512,2]
[400435642,1767551186078,8439.48038364,0.0001511,2]
[400435643,1767551189125,-10000.01,0.0001512,2]
[400435644,1767551189313,-10000.01,0.0001512,2]
[400435645,1767551189516,-10000.01,0.0001512,2]
[400435646,1767551196398,-204.9655146,0.00015119,2]
[400435647,1767551196429,-500.0,0.00015119,2]
[400435648,1767551196464,-192.64382429,0.00015119,2]
[400435649,1767551196494,-187.26207539,0.00015119,2]
[400435650,1767551196525,-303.22457812,0.00015119,2]
[400435652,1767551196554,-200.5323999,0.00015119,2]
[400435653,1767551196585,-500.0,0.00015119,2]
[400435654,1767551196621,-500.0,0.00015119,2]
[400435655,1767551196652,-500.0,0.00015119,2]
[400435656,1767551196680,-500.0,0.00015119,2]
[400435657,1767551196715,-500.0,0.00015119,2]
[400435658,1767551196745,-456.14070919,0.00015119,2]
[400435659,1767551196776,-313.1513291,0.00015119,2]
[400435660,1767551196955,-500.0,0.00015119,2]
[400435661,1767551196991,-500.0,0.00015119,2]
[400435662,1767551197021,-266.69628261,0.00015119,2]
[400435663,1767551197056,-500.0,0.00015119,2]
[400435664,1767551197094,-500.0,0.00015119,2]
[400435665,1767551197136,-500.0,0.00015119,2]
[400435666,1767551197170,-500.0,0.00015119,2]
[400435667,1767551197203,-500.0,0.00015119,2]
[400435668,1767551197236,-500.0,0.00015119,2]
[400435669,1767551197269,-500.0,0.00015119,2]
[400435670,1767551197534,1500.0,0.00014591,2]
[400435671,1767551197578,-500.0,0.00015119,2]
[400435672,1767551197613,-500.0,0.00015119,2]
[400435673,1767551197648,-500.0,0.00015119,2]
[400435674,1767551197683,-500.0,0.00015119,2]
[400435675,1767551197718,-251.32383211,0.00015119,2]
[400435676,1767551197752,-500.0,0.00015119,2]
[400435677,1767551197786,-500.0,0.00015119,2]
[400435678,1767551197820,-500.0,0.00015119,2]
[400435679,1767551197857,-500.0,0.00015119,2]
[400435680,1767551198248,-284.16913882,0.0001512,2]
[400435681,1767551198272,-500.0,0.0001512,2]
[400435682,1767551198287,-1497.36233578,0.0001512,2]
[400435683,1767551204402,1203.96202531,0.0001502,2]
[400435684,1767551206768,-10000.01,0.0001512,2]
[400435685,1767551207189,-10000.01,0.0001512,2]
[400435686,1767551207373,-10000.01,0.0001512,2]
[400435687,1767551207660,-10000.01,0.0001512,2]
[400435688,1767551207713,-10000.01,0.0001512,2]
[400435689,1767551207896,-10000.01,0.0001512,2]
[400435690,1767551216152,-10000.01,0.0001512,2]
[400435691,1767551225856,-300.0,0.00015119,2]
[400435692,1767551225886,-300.0,0.00015119,2]
[400435693,1767551225939,-8800.01,0.0001512,2]
[400435694,1767551226148,-10000.01,0.0001512,2]
[400435695,1767551226358,-10000.01,0.0001512,2]
[400435696,1767551226517,-10000.01,0.0001512,2]
[400435697,1767551226726,-10000.01,0.0001512,2]
[400435698,1767551226918,-10000.01,0.0001512,2]
[400435699,1767551227147,-10000.01,0.0001512,2]
[400435700,1767551227340,-10000.01,0.0001512,2]
[400435710,1767551246799,-10000.01,0.0001512,2]
[400435711,1767551249135,-438.10496113,0.0001512,2]
[400435712,1767551252181,-10000.01,0.0001512,2]
[400435713,1767551252411,-10000.01,0.0001512,2]
[400435714,1767551252626,-10000.01,0.0001512,2]
[400435715,1767551252837,-10000.01,0.0001512,2]
[400435716,1767551253087,-10000.01,0.0001512,2]
[400435717,1767551253300,-10000.01,0.0001512,2]
[400435718,1767551253555,-10000.01,0.0001512,2]
[400435720,1767551260524,-10000.01,0.0001512,2]
[400435721,1767551264062,2695.94183635,0.0001502,2]
[400435723,1767551277292,-10000.01,0.0001512,2]
[400435724,1767551277691,-10000.01,0.0001512,2]
[400435725,1767551277840,-10000.01,0.0001512,2]
[400435726,1767551278007,-10000.01,0.0001512,2]
[400435727,1767551278178,-10000.01,0.0001512,2]
[400435728,1767551286602,973.39,0.00014545,2]
[400435729,1767551286905,-10000.01,0.0001512,2]
[400435731,1767551290164,164.59,0.00011626,2]
[400435733,1767551297523,515.72,0.0001511,3]
[400435735,1767551307466,1156.40036966,0.00015,2]
[400435736,1767551308972,205.95297082,0.0001502,2]
[400435749,1767551352369,-151.0,0.00015117,2]
[400435750,1767551352401,-285.85748222,0.00015119,2]
[400435751,1767551352439,-300.08527848,0.00015119,2]
[400435752,1767551352471,-367.29592446,0.00015119,2]
[400435753,1767551352508,-500.0,0.00015119,2]
[400435754,1767551352544,-500.0,0.00015119,2]
[400435755,1767551352580,-500.0,0.00015119,2]
[400435756,1767551352610,-500.0,0.00015119,2]
[400435757,1767551352648,-500.0,0.00015119,2]
[400435758,1767551352681,-178.89767695,0.00015119,2]
[400435759,1767551352715,-463.52473446,0.00015119,2]
[400435760,1767551352749,-500.0,0.00015119,2]
[400435761,1767551352783,-6.68780686,0.00015119,2]
[400435762,1767551353033,-493.31219314,0.00015119,2]
[400435763,1767551353105,-500.0,0.00015119,2]
[400435764,1767551353140,-500.0,0.00015119,2]
[400435765,1767551353174,-500.0,0.00015119,2]
[400435766,1767551353208,-500.0,0.00015119,2]
[400435767,1767551353252,-500.0,0.00015119,2]
[400435768,1767551353287,-209.46793767,0.00015119,2]
[400435769,1767551353320,-500.0,0.00015119,2]
[400435770,1767551353353,-500.0,0.00015119,2]
[400435771,1767551353388,-500.0,0.00015119,2]
[400435772,1767551353420,-500.0,0.00015119,2]
[400435773,1767551353452,-81.07412466,0.00015119,2]
[400435774,1767551353617,-418.92587534,0.00015119,2]
[400435775,1767551354033,-500.0,0.00015119,2]
[400435776,1767551354078,-248.04965878,0.00015119,2]
[400435777,1767551354108,-500.0,0.00015119,2]
[400435778,1767551354145,-500.0,0.00015119,2]
[400435779,1767551354174,-500.0,0.00015119,2]
[400435780,1767551354204,-500.0,0.00015119,2]
[400435781,1767551354233,-500.0,0.00015119,2]
[400435782,1767551354260,-500.0,0.00015119,2]
[400435783,1767551354746,-418.92587534,0.0001512,2]
[400435784,1767551354763,-1666.05893176,0.0001512,2]
[400435785,1767551354817,-10000.01,0.0001512,2]
[400435786,1767551354832,-10000.01,0.0001512,2]
[400435787,1767551354847,-10000.01,0.0001512,2]
[400435788,1767551354866,-10000.01,0.0001512,2]
[400435789,1767551354910,-10000.01,0.0001512,2]
[400435790,1767551354947,-10000.01,0.0001512,2]
[400435793,1767551358447,-10000.01,0.0001512,2]
[400435794,1767551358551,-10000.01,0.0001512,2]
[400435802,1767551395915,-10000.01,0.0001512,2]
[400435803,1767551396279,-10000.01,0.0001512,2]
[400435804,1767551396526,-10000.01,0.0001512,2]
[400435805,1767551396686,-10000.01,0.0001512,2]
[400435806,1767551396875,-10000.01,0.0001512,2]
[400435807,1767551397221,-10000.01,0.0001512,2]
[400435808,1767551397246,-10000.01,0.0001512,2]
[400435809,1767551397457,-10000.01,0.0001512,2]
[400435810,1767551397643,-10000.01,0.0001512,2]
[400435811,1767551416048,-1200.0,0.00015119,2]
[400435812,1767551416080,-177.0,0.00015119,2]
[400435813,1767551416110,-300.0,0.00015119,2]
[400435814,1767551416139,-300.0,0.00015119,2]
[400435815,1767551416168,-300.0,0.00015119,2]
[400435816,1767551416197,-300.0,0.00015119,2]
[400435817,1767551416226,-276.0,0.00015119,2]
[400435818,1767551416256,-500.0,0.00015119,2]
[400435819,1767551416284,-159.82665654,0.00015119,2]
[400435820,1767551416451,-2974.35668692,0.0001512,2]
[400435821,1767551416492,-10000.01,0.0001512,2]
[400435822,1767551416534,-10000.01,0.0001512,2]
[400435823,1767551416644,-10000.01,0.0001512,2]
[400435824,1767551417000,-10000.01,0.0001512,2]
[400435825,1767551417174,-10000.01,0.0001512,2]
[400435826,1767551417359,-10000.01,0.0001512,2]
[400435827,1767551417817,-10000.01,0.0001512,2]
[400435828,1767551417833,-10000.01,0.0001512,2]
[400435839,1767551431810,-22754.01791949,0.0001512,2]
[400435840,1767551431865,-461.44401143,0.0001512,2]
[400435841,1767551431876,-264.15421608,0.0001512,2]
[400435842,1767551431922,-878.47389663,0.0001512,2]
[400435843,1767551431934,-1765.86379233,0.0001512,2]
[400435844,1767551431946,-9035.50000001,0.0001512,2]
[400435851,1767551437852,-10387.72738952,0.0001512,2]
[400435852,1767551437865,-580.25878155,0.0001512,2]
[400435853,1767551437911,-11350.42308373,0.0001512,2]
[400435854,1767551437926,-3275.5288775,0.0001512,2]
[400435855,1767551437940,-3600.01015489,0.0001512,2]
[400435856,1767551437953,-1037.02008947,0.0001512,2]
[400435857,1767551437965,-3139.83130715,0.0001512,2]
[400435858,1767551437978,-16953.1867507,0.0001512,2]
[400435859,1767551437994,-4038.49465,0.0001512,2]
[400435860,1767551438006,-1915.22880161,0.0001512,2]
[400435861,1767551438018,-650.0,0.0001512,2]
[400435880,1767551438199,-701.20532303,0.0001512,2]
[400435883,1767551439815,-455.71,0.0001512,2]
[400435884,1767551440192,-95623.12223816,0.0001512,2]
[400435885,1767551440201,-628.8133,0.0001512,2]
[400435886,1767551440211,-250.0,0.00015126,2]
[400435887,1767551440221,-302.33857604,0.00015133,2]
[400435888,1767551440230,-195.0,0.00015133,2]
[400435889,1767551440240,-300.0,0.00015145,2]
[400435890,1767551440249,-689.84521891,0.00015145,2]
[400435891,1767551440259,-300.0,0.0001517,2]
[400435892,1767551440269,-300.0,0.00015186,2]
[400435893,1767551440278,-300.0,0.00015186,2]
[400435894,1767551440288,-300.0,0.00015186,2]
[400435895,1767551440297,-402.90273775,0.00015214,2]
[400435896,1767551440306,-500.0,0.00015219,2]
[400435897,1767551440316,-500.0,0.00015219,2]
[400435898,1767551440325,-200.0,0.0001522,2]
[400435899,1767551440335,-300.0,0.0001527,2]
[400435900,1767551440344,-1000.0,0.00015272,2]
[400435901,1767551440354,-3152.3197,0.00015288,2]
[400435902,1767551440363,-300.0,0.00015299,2]
[400435903,1767551440373,-438.09983536,0.000153,2]
[400435904,1767551440382,-2000.0,0.00015311,2]
[400435906,1767551440391,-200.0,0.00015311,2]
[400435908,1767551440401,-200.0,0.00015311,2]
[400435910,1767551440410,-1000.0,0.00015314,2]
[400435911,1767551440420,-197.61024982,0.0001532,2]
[400435912,1767551440429,-151.0,0.0001532,2]
[400435913,1767551440439,-151.0,0.0001532,2]
[400435914,1767551440448,-151.0,0.0001532,2]
[400435915,1767551440458,-151.0,0.0001532,2]
[400435916,1767551440467,-151.0,0.0001532,2]
[400435917,1767551440476,-151.0,0.0001532,2]
[400435918,1767551440485,-151.0,0.0001532,2]
[400435919,1767551440494,-151.0,0.0001532,2]
[400435920,1767551440503,-151.0,0.0001532,2]
[400435921,1767551440512,-151.0,0.0001532,2]
[400435922,1767551440523,-151.0,0.0001532,2]
[400435924,1767551440532,-152.0,0.0001532,2]
[400435926,1767551440542,-152.0,0.0001532,2]
[400435927,1767551440551,-1259.0,0.0001532,2]
[400435928,1767551440560,-162.596281,0.0001532,2]
[400435929,1767551440569,-1259.0,0.0001532,2]
[400435930,1767551440578,-839.0,0.0001532,2]
[400435931,1767551440588,-151.0,0.0001532,2]
[400435932,1767551440597,-1259.0,0.0001532,2]
[400435933,1767551440607,-965.47191766,0.0001532,2]
[400435934,1767551440616,-1259.0,0.0001532,2]
[400435935,1767551440625,-1259.0,0.0001532,2]
[400435936,1767551440635,-1259.0,0.0001532,2]
[400435937,1767551440644,-152.0,0.0001532,2]
[400435938,1767551440654,-1259.0,0.0001532,2]
[400435939,1767551440665,-152.0,0.0001532,2]
[400435940,1767551440675,-1334.48802844,0.0001532,2]
[400435941,1767551440684,-152.0,0.0001532,2]
[400435942,1767551440695,-1259.0,0.0001532,2]
[400435943,1767551440706,-152.0,0.0001532,2]
[400435944,1767551440717,-1259.0,0.0001532,2]
[400435945,1767551440728,-152.0,0.0001532,2]
[400435946,1767551440739,-152.0,0.0001532,2]
[400435947,1767551440750,-152.0,0.0001532,2]
[400435948,1767551440761,-152.0,0.0001532,2]
[400435949,1767551440770,-152.0,0.0001532,2]
[400435950,1767551440780,-152.0,0.0001532,2]
[400435951,1767551440790,-152.0,0.0001532,2]
[400435952,1767551440799,-152.0,0.0001532,2]
[400435953,1767551440809,-152.0,0.0001532,2]
[400435954,1767551440821,-152.0,0.0001532,2]
[400435955,1767551440831,-152.0,0.0001532,2]
[400435956,1767551440841,-152.0,0.0001532,2]
[400435957,1767551440851,-152.0,0.0001532,2]
[400435958,1767551440860,-152.0,0.0001532,2]
[400435959,1767551440870,-152.0,0.0001532,2]
[400435960,1767551440879,-152.0,0.0001532,2]
[400435961,1767551440891,-152.0,0.0001532,2]
[400435962,1767551440900,-152.0,0.0001532,2]
[400435963,1767551440910,-152.0,0.0001532,2]
[400435964,1767551440920,-500.0,0.0001532,2]
[400435965,1767551440931,-151.0,0.0001532,2]
[400435966,1767551440941,-151.0,0.0001532,2]
[400435967,1767551440950,-1259.0,0.0001532,2]
[400435968,1767551440959,-151.0,0.0001532,2]
[400435969,1767551440969,-1259.0,0.0001532,2]
[400435970,1767551440978,-151.0,0.0001532,2]
[400435971,1767551440991,-1259.0,0.0001532,2]
[400435972,1767551441001,-151.0,0.0001532,2]
[400435973,1767551441010,-1259.0,0.0001532,2]
[400435974,1767551441020,-248.99475294,0.0001532,2]
[400435975,1767551441031,-1259.0,0.0001532,2]
[400435976,1767551441041,-161.01668066,0.0001532,2]
[400435977,1767551441051,-1259.0,0.0001532,2]
[400435978,1767551441061,-1259.0,0.0001532,2]
[400435979,1767551441070,-1259.0,0.0001532,2]
[400435980,1767551441079,-1259.0,0.0001532,2]
[400435981,1767551441089,-151.0,0.0001532,2]
[400435982,1767551441098,-1259.0,0.0001532,2]
[400435983,1767551441107,-151.0,0.0001532,2]
[400435984,1767551441117,-1259.0,0.0001532,2]
[400435985,1767551441126,-151.0,0.0001532,2]
[400435986,1767551441135,-1259.0,0.0001532,2]
[400435987,1767551441144,-151.0,0.0001532,2]
[400435988,1767551441153,-1259.0,0.0001532,2]
[400435989,1767551441162,-151.0,0.0001532,2]
[400435990,1767551441171,-1259.0,0.0001532,2]
[400435991,1767551441181,-151.0,0.0001532,2]
[400435992,1767551441190,-1259.0,0.0001532,2]
[400435993,1767551441200,-151.0,0.0001532,2]
[400435994,1767551441209,-151.0,0.0001532,2]
[400435995,1767551441218,-1259.0,0.0001532,2]
[400435996,1767551441227,-151.0,0.0001532,2]
[400435997,1767551441237,-1211.75227175,0.0001532,2]
[400435998,1767551441246,-151.0,0.0001532,2]
[400435999,1767551441255,-151.0,0.0001532,2]
[400436000,1767551441265,-151.0,0.0001532,2]
[400436001,1767551441275,-158.0,0.0001532,2]
[400436002,1767551441284,-151.0,0.0001532,2]
[400436003,1767551441293,-158.0,0.0001532,2]
[400436004,1767551441303,-151.0,0.0001532,2]
[400436005,1767551441312,-158.0,0.0001532,2]
[400436006,1767551441321,-151.0,0.0001532,2]
[400436007,1767551441331,-158.0,0.0001532,2]
[400436008,1767551441340,-151.0,0.0001532,2]
[400436009,1767551441352,-151.0,0.0001532,2]
[400436010,1767551441361,-158.0,0.0001532,2]
[400436011,1767551441370,-151.0,0.0001532,2]
[400436012,1767551441380,-156.3554653,0.0001532,2]
[400436013,1767551441389,-151.0,0.0001532,2]
[400436014,1767551441399,-151.0,0.0001532,2]
[400436015,1767551441409,-151.0,0.0001532,2]
[400436016,1767551441420,-151.0,0.0001532,2]
[400436017,1767551441430,-151.0,0.0001532,2]
[400436018,1767551441439,-151.0,0.0001532,2]
[400436019,1767551441449,-151.0,0.0001532,2]
[400436020,1767551441458,-151.0,0.0001532,2]
[400436021,1767551441467,-151.0,0.0001532,2]
[400436022,1767551441477,-151.0,0.0001532,2]
[400436023,1767551441487,-151.0,0.0001532,2]
[400436024,1767551441497,-1203.96202527,0.0001534,2]
[400436025,1767551441506,-2695.94183627,0.0001534,2]
[400436026,1767551441516,-597.09726225,0.00015348,2]
[400436027,1767551441527,-500.0,0.00015372,2]
[400436028,1767551441536,-200.0,0.00015372,2]
[400436029,1767551441545,-500.0,0.00015373,2]
[400436030,1767551441555,-563.66853913,0.00015373,2]
[400436031,1767551441564,-501.07232702,0.00015373,2]
[400436032,1767551441573,-172.94090925,0.00015373,2]
[400436033,1767551441582,-167.44841446,0.00015373,2]
[400436034,1767551441591,-500.0,0.00015373,2]
[400436035,1767551441601,-500.0,0.00015373,2]
[400436036,1767551441612,-500.0,0.00015373,2]
[400436037,1767551441621,-177.01594385,0.00015373,2]
[400436038,1767551441630,-500.0,0.00015373,2]
[400436039,1767551441640,-500.9351107,0.00015373,2]
[400436040,1767551441651,-500.0,0.00015373,2]
[400436041,1767551441660,-163.4270829,0.00015373,2]
[400436042,1767551441670,-500.0,0.00015373,2]
[400436043,1767551441679,-500.0,0.00015373,2]
[400436044,1767551441689,-500.0,0.00015373,2]
[400436045,1767551441698,-173.10799489,0.00015373,2]
[400436046,1767551441708,-500.0,0.00015373,2]
[400436047,1767551441718,-161.8055952,0.00015373,2]
[400436048,1767551441728,-500.0,0.00015373,2]
[400436049,1767551441738,-500.93407438,0.00015373,2]
[400436050,1767551441954,-164.04270598,0.00015373,2]
[400436051,1767551441964,-165.84262506,0.00015373,2]
[400436052,1767551441974,-500.0,0.00015373,2]
[400436053,1767551441983,-500.0,0.00015373,2]
[400436054,1767551441996,-501.3047021,0.00015373,2]
[400436055,1767551442006,-500.0,0.00015373,2]
[400436056,1767551442016,-500.79042778,0.00015373,2]
[400436057,1767551442026,-500.0,0.00015373,2]
[400436058,1767551442037,-500.0,0.00015373,2]
[400436059,1767551442047,-500.0,0.00015373,2]
[400436060,1767551442056,-500.0,0.00015373,2]
[400436061,1767551442067,-500.0,0.00015373,2]
[400436062,1767551442077,-500.0,0.00015373,2]
[400436063,1767551442087,-500.0,0.00015373,2]
[400436064,1767551442096,-500.0,0.00015373,2]
[400436065,1767551442106,-500.0,0.00015373,2]
[400436066,1767551442115,-165.62195254,0.00015373,2]
[400436067,1767551442125,-500.65099109,0.00015373,2]
[400436068,1767551442135,-500.0,0.00015373,2]
[400436069,1767551442144,-500.0,0.00015373,2]
[400436070,1767551442154,-500.0,0.00015373,2]
[400436071,1767551442163,-165.75698725,0.00015373,2]
[400436072,1767551442173,-216.79325996,0.00015373,2]
[400436073,1767551442182,-500.0,0.00015373,2]
[400436074,1767551442191,-504.0985395,0.00015373,2]
[400436075,1767551442201,-316.16920901,0.00015373,2]
[400436076,1767551442210,-500.0,0.00015373,2]
[400436077,1767551442221,-500.0,0.00015373,2]
[400436078,1767551442230,-500.0,0.00015373,2]
[400436079,1767551442240,-500.0,0.00015373,2]
[400436080,1767551442250,-537.11510591,0.00015373,2]
[400436081,1767551442260,-269.65,0.00015373,2]
[400436082,1767551442270,-301.90886,0.0001538,2]
[400436083,1767551442279,-301.90887,0.0001538,2]
[400436084,1767551442289,-301.90887,0.0001538,2]
[400436085,1767551442299,-301.90887,0.0001538,2]
[400436086,1767551442308,-301.90887,0.0001538,2]
[400436087,1767551442318,-301.90886,0.0001538,2]
[400436088,1767551442328,-300.0,0.00015382,2]
[400436089,1767551442338,-301.90887,0.0001539,2]
[400436090,1767551442347,-301.90887,0.0001539,2]
[400436091,1767551442357,-301.90887,0.0001539,2]
[400436092,1767551442367,-301.90887,0.0001539,2]
[400436093,1767551442376,-300.0,0.00015392,2]
[400436094,1767551442387,-300.0,0.00015414,2]
[400436095,1767551442396,-500.0,0.0001542,2]
[400436096,1767551442406,-500.0,0.0001542,2]
[400436097,1767551442417,-500.0,0.0001542,2]
[400436098,1767551442427,-500.0,0.0001542,2]
[400436099,1767551442437,-500.0,0.0001542,2]
[400436100,1767551442447,-500.0,0.0001542,2]
[400436101,1767551442456,-500.0,0.0001542,2]
[400436102,1767551442466,-500.0,0.0001542,2]
[400436103,1767551442475,-500.0,0.0001542,2]
[400436104,1767551442486,-500.0,0.0001542,2]
[400436105,1767551442496,-488.74590428,0.0001542,2]
[400436106,1767551442506,-151.0,0.00015421,2]
[400436107,1767551442515,-264.15199722,0.00015421,2]
[400436108,1767551442525,-205.95297079,0.00015431,2]
[400436109,1767551442535,-166.66,0.00015438,2]
[400436110,1767551442545,-207.19077534,0.00015463,4]
[400436111,1767551442555,-1266.97912113,0.00015464,2]
[400436112,1767551442564,-200.0,0.00015464,2]
[400436113,1767551442574,-200.0,0.00015464,2]
[400436114,1767551442583,-178.97,0.00015517,2]
[400436115,1767551442592,-500.0,0.0001553,2]
[400436116,1767551442602,-578.28204782,0.0001553,2]
[400436117,1767551442611,-500.0,0.0001553,2]
[400436118,1767551442622,-500.0,0.0001553,2]
[400436119,1767551442631,-500.0,0.0001553,2]
[400436120,1767551442641,-500.0,0.0001553,2]
[400436121,1767551442651,-500.0,0.0001553,2]
[400436122,1767551442660,-500.0,0.0001553,2]
[400436123,1767551442670,-252.09027213,0.0001553,2]
[400436124,1767551442680,-500.0,0.0001553,2]
[400436125,1767551442689,-500.0,0.0001553,2]
[400436126,1767551442699,-500.0,0.0001553,2]
[400436127,1767551442708,-500.0,0.0001553,2]
[400436128,1767551442718,-500.0,0.0001553,2]
[400436129,1767551442728,-500.0,0.0001553,2]
[400436130,1767551442737,-500.0,0.0001553,2]
[400436131,1767551442746,-500.0,0.0001553,2]
[400436132,1767551442756,-500.0,0.0001553,2]
[400436133,1767551442765,-500.0,0.0001553,2]
[400436134,1767551442774,-522.96995118,0.0001553,2]
[400436135,1767551442784,-500.0,0.0001553,2]
[400436136,1767551442794,-500.0,0.0001553,2]
[400436137,1767551442804,-500.0,0.0001553,2]
[400436138,1767551442813,-500.0,0.0001553,2]
[400436139,1767551442823,-500.0,0.0001553,2]
[400436140,1767551442833,-500.0,0.0001553,2]
[400436141,1767551442842,-500.0,0.0001553,2]
[400436142,1767551442852,-500.0,0.0001553,2]
[400436143,1767551442861,-500.0,0.0001553,2]
[400436144,1767551442871,-500.0,0.0001553,2]
[400436145,1767551442881,-501.08142461,0.0001553,2]
[400436146,1767551442891,-500.0,0.0001553,2]
[400436147,1767551442900,-500.0,0.0001553,2]